Cogmind - Beta 16 @@@ ROGUE MODE // 2025.10.21 @ 17:53:56 Player: beans Result: Destroyed by S-10 Pest with Light Assault Rifle Performance ------------- Evolutions (0) 0 Regions Visited (2) 400 Robots Destroyed (11) 55 Value Destroyed (158) 158 Prototype IDs (0) 0 Alien Tech Used (0) 0 Bonus (0) 0 TOTAL SCORE: 613 Bonus ------- None Cogmind --------- Core Integrity 0/250 Matter 290/300 Energy 98/100 System Corruption 0% Temperature Cool (0) Movement Flying (32) Location -10/Mines Parts ------- > --- POWER (1) -------- (None) > --- PROPULSION (2) --- VTOL Module VTOL Module > --- UTILITY (2) ------ Transport Network Coupler > --- WEAPON (2) ------- Light Assault Rifle Light Assault Rifle > --- INVENTORY (5) ---- Aluminum Leg VTOL Module Medium Laser Small Laser Peak State ------------ > --- POWER ------------ (None) > --- PROPULSION ------- VTOL Module VTOL Module > --- UTILITY ---------- Transport Network Coupler > --- WEAPON ----------- Medium Laser Medium Laser > --- INVENTORY -------- Aluminum Leg VTOL Module VTOL Module [Rating: 7] Favorites ----------- Power Light Ion Engine Engine Light Ion Engine Propulsion VTOL Module Leg Aluminum Leg Flight Unit VTOL Module Utility Transport Network Coupler Processor Transport Network Coupler Weapon Medium Laser Energy Gun Medium Laser Ballistic Gun Light Assault Rifle Build | -11 -10 -10 ------- Run | Yrd Mat Min Slots Evolved . | . . . Power . | . . . Propulsion . | . . . Utility . | . . . Weapon . | . . . Parts Attached 13 | 5 4 4 Power 1 | 1 . . Engine 1 | 1 . . Core . | . . . Reactor . | . . . Propulsion 6 | 2 3 1 Treads . | . . . Leg 3 | 2 1 . Wheel . | . . . Hover . | . . . Flight 3 | . 2 1 Utility 1 | . 1 . Device . | . . . Storage . | . . . Processor 1 | . 1 . Hackware . | . . . Protection . | . . . Artifact . | . . . Weapon 5 | 2 . 3 Energy Gun 3 | 2 . 1 Energy Cannon . | . . . Ballistic Gun 2 | . . 2 Ballistic Cannon . | . . . Launcher . | . . . Special Weapon . | . . . Impact Weapon . | . . . Slashing Weapon . | . . . Piercing Weapon . | . . . Special Melee Weapon . | . . . Unidentified Prototypes . | . . . Parts Lost 6 | . 4 2 Power 1 | . 1 . Propulsion 3 | . 2 1 Utility . | . . . Weapon 2 | . 1 1 Highest Loss Streak 3 | . 3 1 To Critical Strikes . | . . . Average Backups 2 | . 1 4 Power . | . . . Propulsion 1 | . . 2 Utility . | . . . Weapon . | . . 1 Tool/Special . | . . . Unused Backups 4 | . . 4 Power . | . . . Propulsion 3 | . . 3 Utility . | . . . Weapon 1 | . . 1 Tool/Special . | . . . Average Slot Usage (%) 58 | . 57 59 Engine 2 | . 4 . Leg 9 | . 16 . Flight 17 | . 8 27 Processor 9 | . 5 14 Energy Gun 12 | . 21 2 Ballistic Gun 6 | . . 14 Peak Build Rating 7 | 5 6 7 Average Rating 5 | 3 4 6 On Entrance 3 | . 5 6 Avg Prop Armor Cover (%) . | . . . Naked Turns . | . . . Heaviest Build 7 | 7 7 2 Greatest Support 20 | 20 20 8 Greatest Overweight (x) . | . . . Average Overweight (x) . | . . . Largest Inventory Capacity 5 | 5 5 5 Average Capacity 5 | 5 5 5 Most Carried 5 | 3 4 5 Average Carried 2 | . 1 4 Final Capacity 5 | 5 5 5 Final Carried 4 | . 4 4 Class Distribution -------------------- 53% | Sprinter 46% | Mutant Dominant Class ---------------- Mutant | -10/Materials Sprinter | -10/Mines Resources | -11 -10 -10 ----------- Run | Yrd Mat Min Matter Collected 311 | 166 28 117 Remotely . | . . . Salvage Created 177 | . 90 87 Parts 15 | . 7 8 Haulers Intercepted . | . . . Recyclers Shooed . | . . . Parts Field Recycled . | . . . Retrieved Matter . | . . . Parts Self-Destructed . | . . . Prevented . | . . . Parts Restored . | . . . Kills | -11 -10 -10 ------- Run | Yrd Mat Min Combat Hostiles Destroyed 11 | . 5 6 Guns 10 | . 4 6 AOE 1 | . 1 . Classes Destroyed 2 | . 2 . Swarmer 9 | . 3 6 Grunt 2 | . 2 . Best Kill Streak 3 | . 2 3 Combat Bots Only 3 | . 2 3 Max Kills in Single Turn 1 | . 1 1 Gunslinging . | . . . Exploded 1 | . 1 . Melee . | . . . Uniques/NPCs Destroyed . | . . . Combat | -11 -10 -10 -------- Run | Yrd Mat Min Hostile Shots Fired 91 | . 52 39 Missed 30 | . 18 12 Hits 61 | . 34 27 Projectile 61 | . 34 27 Damage Taken 691 | . 476 215 Core 252 | . 130 122 Absorbed by Shields . | . . . Core Remaining (%) 100 | 100 . . Volleys Fired 53 | 2 28 23 Largest 2 | 2 2 2 Hottest 100 | 100 100 100 Shots Fired 77 | 4 44 29 Gun 77 | 4 44 29 Cannon . | . . . Launcher . | . . . Special . | . . . Kinetic 20 | . . 20 Thermal 57 | 4 44 9 Explosive . | . . . Electromagnetic . | . . . Robot Hit Streak 8 | 3 4 8 Robot Miss Streak 6 | 1 6 2 Penetration Max . | . . . Secondary Targets 1 | . 1 . Max Gunslinging Chain 1 | . 1 . Shots Hit Robots 44 | 3 24 17 Core Hits 15 | . 6 9 Critical Kills . | . . . Critical Parts Destroyed . | . . . Critical Strikes 4 | . 3 1 Burn 4 | . 3 1 Melee Attacks . | . . . Impact . | . . . Slashing . | . . . Piercing . | . . . Sneak Attacks . | . . . Combat Hostiles . | . . . Follow-up Attacks . | . . . Damage Inflicted 516 | 36 328 152 Guns 516 | 36 328 152 Cannons . | . . . Explosions . | . . . Melee . | . . . Ramming . | . . . Kinetic 103 | . . 103 Thermal 413 | 36 328 49 Explosive . | . . . Electromagnetic . | . . . Impact . | . . . Slashing . | . . . Piercing . | . . . Highest Corruption . | . . . Average Corruption . | . . . Corruption Purged . | . . . Corruption Blocked . | . . . Overload Shots . | . . . Overflow Damage . | . . . Projectiles . | . . . Explosions . | . . . Melee . | . . . Knockbacks . | . . . Impact . | . . . Kinetic . | . . . Secondary . | . . . Self-Inflicted Damage . | . . . Shots . | . . . Rammed . | . . . Targets Rammed . | . . . Kicked . | . . . Crushed . | . . . Highest Temperature 352 | 78 352 58 Average Temperature 154 | 45 184 37 Received Heat Transfer 78 | . 78 . Effects 1 | . 1 . Interference 1 | . 1 . Siege Activations . | . . . Martial Activations . | . . . Shielding Activations . | . . . Robots Disrupted . | . . . Combat Hostiles . | . . . Robots Corrupted . | . . . Combat Hostiles . | . . . Parts Fried . | . . . Impact Corruptions . | . . . Robots Melted . | . . . Combat Hostiles . | . . . Parts Melted 2 | . 1 1 Heat Transferred 1517 | 111 1184 222 Parts Sabotaged . | . . . Parts Stolen . | . . . Parts Stripped . | . . . Power Chain Reactions . | . . . Alert | -11 -10 -10 ------- Run | Yrd Mat Min Maximum Alert Level . | . . . Low Security (%) 100 | 100 100 100 Level 1 . | . . . Level 2 . | . . . Level 3 . | . . . Level 4 . | . . . Level 5 . | . . . High Security . | . . . Max Security . | . . . Peak Influence 70 | . 41 70 Initial . | . . . Average 17 | . 14 24 Influence Increases 271 | . 121 150 Destroy 0b10 Robot/C 220 | . 100 120 Destroy Leader 50 | . 20 30 Destroy Structure 1 | . 1 . Influence Decreases 201 | . 121 80 Time Decay 161 | . 81 80 Lost Part 40 | . 40 . Squads Dispatched 1 | . 1 . Investigation . | . . . Extermination . | . . . Reinforcement 1 | . 1 . Assault . | . . . Garrison . | . . . Intercept . | . . . Searches Triggered . | . . . Construction Impeded . | . . . Haulers Reinforced . | . . . Active Scanning Responses . | . . . Cargo Convoy Interrupts . | . . . Stealth | -11 -10 -10 --------- Run | Yrd Mat Min Distress Signals 2 | . 2 . Communications Jammed . | . . . Distress Signals . | . . . Times Spotted 22 | . 13 9 Peak Tracking Total 9 | . 9 3 Tactical Retreats . | . . . Traps | -11 -10 -10 ------- Run | Yrd Mat Min Traps Triggered . | . . . Indirectly . | . . . Trap Hack Attempts . | . . . Triggered . | . . . Disarmed . | . . . Reprogrammed . | . . . Reused . | . . . Traps Extracted . | . . . Installed . | . . . Triggered . | . . . Machines | -11 -10 -10 ---------- Run | Yrd Mat Min Machines Disabled . | . . . Max in Single Turn . | . . . Machines Repaired . | . . . Machines Dismantled . | . . . Machines Sabotaged . | . . . Overloaded Fab Kills . | . . . Hacking | -11 -10 -10 --------- Run | Yrd Mat Min Machines Accessed . | . . . Terminals . | . . . Fabricators . | . . . Repair Stations . | . . . Recycling Units . | . . . Scanalyzers . | . . . Garrison Access . | . . . Total Hacks . | . . . Successful . | . . . Failed . | . . . Catastrophic . | . . . Database Lockouts . | . . . Manual . | . . . Terminals . | . . . Fabricators . | . . . Repair Stations . | . . . Recycling Units . | . . . Scanalyzers . | . . . Garrison Access . | . . . Terminal Hacks . | . . . Fabricator Hacks . | . . . Repair Station Hacks . | . . . Recycling Unit Hacks . | . . . Scanalyzer . | . . . Garrison Access Hacks . | . . . Unauthorized Hacks . | . . . Terminals . | . . . Fabricators . | . . . Repair Stations . | . . . Recycling Units . | . . . Scanalyzers . | . . . Garrison Access . | . . . Data Cores Recovered . | . . . Used . | . . . Hacking Detections . | . . . Full Trace Events . | . . . Feedback Events . | . . . Feedback Blocked . | . . . Robot Schematics Acquired . | . . . Robots Built . | . . . Authchips . | . . . Time . | . . . Total Robot Build Rating . | . . . Part Schematics Acquired . | . . . Parts Built . | . . . Authchips . | . . . Time . | . . . Total Part Build Rating . | . . . Part Studies Acquired . | . . . Parts Repaired . | . . . Time . | . . . Parts Recycled . | . . . Recycled Matter . | . . . Retrieved Matter . | . . . Retrieved Components . | . . . Parts Scanalyzed . | . . . Part Schematics Acquired . | . . . Parts Damaged . | . . . Bothacking | -11 -10 -10 ------------ Run | Yrd Mat Min Used RIF Installer . | . . . Robots Hacked . | . . . Non-combat . | . . . Combat . | . . . Robot Hacks Applied . | . . . Relay Couplers Released . | . . . Fabnet Peak Effective % . | . . . Robots Rewired . | . . . Allies Hacked . | . . . Hacks Repelled . | . . . Allies | -11 -10 -10 -------- Run | Yrd Mat Min Total Allies . | . . . Largest Group . | . . . Highest-Rated Group . | . . . Highest-Rated Ally . | . . . Total Orders . | . . . Ally Attacks . | . . . Total Damage . | . . . Kills . | . . . Allies Corrupted . | . . . Allies Melted . | . . . Intel | -11 -10 -10 ------- Run | Yrd Mat Min Active Infowar (turns) 305 | . 97 208 T.N.C. 305 | . 97 208 Robot Analysis Total . | . . . Derelict Logs Recovered 2 | . . 2 Drone Launches . | . . . Drone Recoveries . | . . . Exploration | -11 -10 -10 ------------- Run | Yrd Mat Min Turns Passed 498 | 57 233 208 Spaces Moved 674 | 42 217 415 Core 21 | 13 8 . Treads . | . . . Legs 92 | 29 63 . Wheels . | . . . Hover . | . . . Flight 561 | . 146 415 Fastest Speed 32 | 50 32 32 Average Speed 44 | 98 58 32 Slowest Speed 120 | 120 120 35 Overloaded Moves . | . . . Propulsion Burnouts . | . . . Robots Hopped 3 | . 1 2 Potential Cave-ins . | . . . Cave-ins Triggered . | . . . Exploration Rate (%) 41 | 3 39 82 Regions Visited 2 Branch Regions 1 Pre-discovered Areas 3 | . . 3 Known Exits Taken . | . . . Unknown Exits Taken 2 | 1 1 . Scrap Searched 2 | . . 2 Spaces Dug . | . . . Terrain Destroyed . | . . . Melee . | . . . Projectile . | . . . AOE . | . . . Terrain Rammed . | . . . Walls Destroyed . | . . . Machines Disabled . | . . . Actions | -11 -10 -10 --------- Run | Yrd Mat Min Total 796 | 53 277 466 Wait 42 | . 23 19 Move 666 | 41 214 411 Hop 3 | . 1 2 Pick Up 16 | 5 7 4 Fast Attach 1 | . . 1 Attach 11 | 5 3 3 Detach 1 | . . 1 Swap 1 | . 1 . Drop 2 | . . 2 Fire 53 | 2 28 23 Melee . | . . . Ram . | . . . Kick . | . . . Crush . | . . . Escape Stasis . | . . . Rewire . | . . . Trap . | . . . Miscellaneous . | . . . Route ------- -11/Scrapyard -10/Materials -10/Mines (discovered 2 exits: [*Mat] / [*Sub]) History --------- Turn | Location | Event 4 | -11/Scrapyard | Discovered new exit (range 16) 58 | -11/Scrapyard | Entered Materials 217 | -10/Materials | Lost 3 parts (2n1w) 289 | -10/Materials | Discovered new exit (range 6) 291 | -10/Materials | Core integrity fell below 50% 291 | -10/Materials | Entered Mines 319 | -10/Mines | Learned location of Zion (-7) 327 | -10/Mines | Found a hidden stash of uninstalled traps 343 | -10/Mines | Met a Derelict bent on vengeance 371 | -10/Mines | Learned location of Storage (-8) 436 | -10/Mines | Discovered new exit (range 7) 451 | -10/Mines | Core integrity fell below 20% 481 | -10/Mines | Discovered new exit (range 10) 499 | -10/Mines | Destroyed by S-10 Pest with Light Assault Rifle Last Messages --------------- Searching scrap... Found Sml. Laser. Found Propulsion Shielding. Found Wheel. Found Weapon Shielding. Found 67 Matter. Acquired Sml. Laser. EXIT=FOUND VTOL Module destroyed. S-10 Pest destroyed. Acquired 1 matter. S-10 Pest destroyed. Acquired 1 matter. S-10 Pest destroyed. Acquired 1 matter. Acquired Lgt. Assault Rifle. Acquired 12 matter. Acquired 8 matter. EXIT=FOUND S-10 Pest destroyed. Map ----- +----------------------------------------------------+ | | | | | | | | | | | ????????????????????????????????????????????? | | ????????????????????????????????????????????? | | ????????????????????????????????????????????? | | ???????####?????????????????????????????????? | | ??????## #???????????????????????######???? | | ?????## ???????????????????????# #???? | | ?????# ???????????????????????#